fUSD/lending_fUSD_20241221
["ID","MTS","AMOUNT","RATE_DAILY","PERIOD"]
[346215084,1734775952404,-676.76,0.00022465,2]
[346215085,1734775952414,-655.72,0.00022465,2]
[346215086,1734775952423,-500.0,0.00022465,2]
[346215087,1734775952434,-6344.44,0.00022465,2]
[346215088,1734775952444,-2388.26,0.00022465,2]
[346215089,1734775952455,-1144.61,0.00022465,2]
[346215090,1734775952465,-500.0,0.00022465,2]
[346215091,1734775952475,-501.79,0.00022465,2]
[346215092,1734775952484,-5318.41,0.00022465,2]
[346215093,1734775952494,-515.28,0.00022465,2]
[346215094,1734775952503,-500.0,0.00022465,2]
[346215095,1734775952512,-1263.34,0.00022465,2]
[346215096,1734775952522,-720.06,0.00022465,2]
[346215097,1734775952532,-876.73,0.00022465,2]
[346215098,1734775952541,-935.87,0.00022465,2]
[346215099,1734775952551,-3592.28,0.00022465,2]
[346215100,1734775952562,-2971.78,0.00022465,2]
[346215101,1734775952572,-1648.585471,0.00022465,7]
[346215102,1734775952584,-6748.31,0.00022465,2]
[346215103,1734775952594,-1648.585463,0.00022465,7]
[346215104,1734775952603,-1217.48,0.00022465,2]
[346215105,1734775952614,-3504.24,0.00022465,2]
[346215106,1734775952624,-1058.32,0.00022465,2]
[346215107,1734775952634,-1129.8,0.00022465,2]
[346215108,1734775952644,-3097.42,0.00022465,2]
[346215109,1734775952653,-1490.71,0.00022465,2]
[346215110,1734775952664,-676.92,0.00022465,2]
[346215111,1734775952674,-1565.87,0.00022465,2]
[346215112,1734775952685,-859.98,0.00022465,2]
[346215113,1734775952695,-1458.03,0.00022465,2]
[346215114,1734775952919,-4052.02,0.00022465,2]
[346215115,1734775952932,-500.0,0.00022465,2]
[346215116,1734775952943,-316.14234864,0.00022465,2]
[346215117,1734775952952,-632.15,0.00022465,2]
[346215118,1734775952962,-858.9,0.00022465,2]
[346215119,1734775952972,-830.33,0.00022465,2]
[346215120,1734775952981,-1002.4,0.00022465,2]
[346215121,1734775952991,-1009.36,0.00022465,2]
[346215122,1734775953000,-2321.55,0.00022465,2]
[346215123,1734775953010,-600.34,0.00022465,2]
[346215124,1734775953020,-1104.22,0.00022465,2]
[346215125,1734775953030,-764.36,0.00022465,2]
[346215126,1734775953039,-500.0,0.00022465,2]
[346215127,1734775953049,-4224.23,0.00022465,2]
[346215128,1734775953062,-1180.1,0.00022465,2]
[346215129,1734775953072,-633.6,0.00022465,2]
[346215130,1734775953081,-634.17,0.00022465,2]
[346215131,1734775953091,-1585.36,0.00022465,2]
[346215132,1734775953102,-898.1,0.00022465,2]
[346215133,1734775953112,-500.0,0.00022465,2]
[346215134,1734775953122,-4622.95,0.00022465,2]
[346215135,1734775953131,-1021.92,0.00022465,2]
[346215136,1734775953142,-691.59,0.00022465,2]
[346215137,1734775953152,-1424.85,0.00022465,2]
[346215138,1734775953162,-2578.29,0.00022465,2]
[346215139,1734775953172,-2579.16,0.00022465,2]
[346215140,1734775953182,-754.63,0.00022465,2]
[346215141,1734775953191,-788.9,0.00022465,2]
[346215142,1734775953201,-500.0,0.00022465,2]
[346215143,1734775953211,-1154.56,0.00022465,2]
[346215144,1734775953221,-2172.59,0.00022465,2]
[346215145,1734775953230,-1815.99,0.00022465,2]
[346215146,1734775953240,-564.41,0.00022465,2]
[346215147,1734775953250,-500.0,0.00022465,2]
[346215148,1734775953260,-765.63,0.00022465,2]
[346215149,1734775953270,-2330.72,0.00022465,2]
[346215150,1734775953280,-2027.75,0.00022465,2]
[346215151,1734775953290,-692.78,0.00022465,2]
[346215152,1734775953300,-1824.57,0.00022465,2]
[346215153,1734775953310,-3085.76,0.00022465,2]
[346215154,1734775953320,-1929.85,0.00022465,2]
[346215155,1734775953330,-500.0,0.00022465,2]
[346215156,1734775953340,-1827.52,0.00022465,2]
[346215157,1734775953350,-3050.1,0.00022465,2]
[346215158,1734775953359,-649.52,0.00022465,2]
[346215159,1734775953369,-5765.15,0.00022465,2]
[346215160,1734775953379,-426.86836221,0.00022465,2]
[346215161,1734775953388,-1925.31,0.00022465,2]
[346215162,1734775953398,-870.4,0.00022465,2]
[346215163,1734775953408,-969.47,0.00022465,2]
[346215164,1734775953418,-500.0,0.00022465,2]
[346215165,1734775953428,-606.49,0.00022465,2]
[346215166,1734775953438,-1170.36,0.00022465,2]
[346215167,1734775953448,-818.72,0.00022465,2]
[346215168,1734775953458,-1969.88,0.00022465,2]
[346215169,1734775953468,-500.0,0.00022465,2]
[346215170,1734775953478,-1351.85,0.00022465,2]
[346215171,1734775953488,-1171.29,0.00022465,2]
[346215172,1734775953498,-905.62,0.00022465,2]
[346215173,1734775953508,-500.0,0.00022465,2]
[346215174,1734775953518,-3955.31,0.00022465,2]
[346215175,1734775953528,-517.22095235,0.00022465,2]
[346215176,1734775953538,-3406.92,0.00022465,2]
[346215177,1734775953548,-3714.4,0.00022465,2]
[346215178,1734775953558,-551.67,0.00022465,2]
[346215179,1734775953569,-1872.87,0.00022465,2]
[346215180,1734775953579,-1524.84,0.00022465,2]
[346215181,1734775953589,-1092.92,0.00022465,2]
[346215182,1734775953599,-3322.3,0.00022465,2]
[346215183,1734775953608,-500.0,0.00022465,2]
[346215184,1734775953618,-500.0,0.00022465,2]
[346215185,1734775953627,-2695.44,0.00022465,2]
[346215186,1734775953637,-572.66,0.00022465,2]
[346215187,1734775953647,-883.25,0.00022465,2]
[346215188,1734775953656,-196.00060105,0.00022465,2]
[346215189,1734775953666,-947.22,0.00022465,2]
[346215190,1734775953676,-2084.85,0.00022465,2]
[346215191,1734775953686,-2249.96,0.00022465,2]
[346215192,1734775953697,-1472.03,0.00022465,2]
[346215193,1734775953707,-1123.42,0.00022465,2]
[346215194,1734775953717,-5683.01,0.00022465,2]
[346215195,1734775953727,-2186.91,0.00022465,2]
[346215196,1734775953736,-2620.07,0.00022465,2]
[346215197,1734775953747,-4201.22,0.00022465,2]
[346215198,1734775953756,-820.18,0.00022465,2]
[346215199,1734775953767,-5057.25,0.00022465,2]
[346215200,1734775953776,-500.0,0.00022465,2]
[346215201,1734775953786,-10381.66,0.00022465,2]
[346215202,1734775953796,-4650.6,0.00022465,2]
[346215203,1734775953806,-1183.78,0.00022465,2]
[346215204,1734775953816,-561.54,0.00022465,2]
[346215205,1734775953826,-500.0,0.00022465,2]
[346215206,1734775953835,-525.46,0.00022465,2]
[346215207,1734775953845,-3296.73,0.00022465,2]
[346215208,1734775953855,-3947.52,0.00022465,2]
[346215209,1734775953865,-500.0,0.00022465,2]
[346215210,1734775953876,-3535.33,0.00022465,2]
[346215211,1734775953885,-6490.03,0.00022465,2]
[346215212,1734775953895,-500.0,0.00022465,2]
[346215213,1734775953905,-1083.48,0.00022465,2]
[346215214,1734775953916,-845.6,0.00022465,2]
[346215215,1734775953927,-3391.23,0.00022465,2]
[346215216,1734775953937,-1144.7,0.00022465,2]
[346215217,1734775953949,-500.0,0.00022465,2]
[346215218,1734775953961,-5742.88,0.00022465,2]
[346215219,1734775953971,-928.79,0.00022465,2]
[346215220,1734775953980,-5965.75,0.00022465,2]
[346215221,1734775953990,-2977.76,0.00022465,2]
[346215222,1734775954000,-1382.72,0.00022465,2]
[346215223,1734775954009,-2377.95,0.00022465,2]
[346215224,1734775954019,-7551.88,0.00022465,2]
[346215225,1734775954029,-4746.58,0.00022465,2]
[346215226,1734775954039,-2769.64,0.00022465,2]
[346215227,1734775954049,-500.0,0.00022465,2]
[346215228,1734775954062,-1797.59,0.00022465,2]
[346215229,1734775954074,-764.69,0.00022465,2]
[346215230,1734775954084,-1876.28,0.00022465,2]
[346215231,1734775954095,-11203.57,0.00022465,2]
[346215232,1734775954107,-500.0,0.00022465,2]
[346215233,1734775954117,-1762.7,0.00022465,2]
[346215234,1734775954128,-1397.67,0.00022465,2]
[346215235,1734775954138,-3768.97,0.00022465,2]
[346215236,1734775954150,-500.0,0.00022465,2]
[346215237,1734775954161,-3624.71,0.00022465,2]
[346215238,1734775954172,-20949.33,0.00022465,2]
[346215239,1734775954182,-500.0,0.00022465,2]
[346215240,1734775954193,-500.0,0.00022465,2]
[346215241,1734775954203,-1049.07,0.00022465,2]
[346215242,1734775954213,-3136.63,0.00022465,2]
[346215243,1734775954223,-1027.9,0.00022465,2]
[346215244,1734775954234,-798.1,0.00022465,2]
[346215245,1734775954245,-6628.04,0.00022465,2]
[346215246,1734775954256,-660.71,0.00022465,2]
[346215247,1734775954267,-154.203883,0.00022465,2]
[346215248,1734775954278,-500.0,0.00022465,2]
[346215249,1734775954288,-500.0,0.00022465,2]
[346215250,1734775954298,-500.0,0.00022465,2]
[346215251,1734775954309,-500.0,0.00022465,2]
[346215252,1734775954319,-500.0,0.00022465,2]
[346215253,1734775954329,-500.0,0.00022465,2]
[346215254,1734775954340,-500.0,0.00022465,2]
[346215255,1734775954350,-2498.1,0.00022465,2]
[346215256,1734775954361,-16473.89,0.00022465,2]
[346215257,1734775954372,-961.49,0.00022465,2]
[346215258,1734775954382,-576.11,0.00022465,2]
[346215259,1734775954392,-682.72,0.00022465,2]
[346215260,1734775954403,-947.84,0.00022465,2]
[346215261,1734775954414,-608.13,0.00022465,2]
[346215262,1734775954424,-2207.4,0.00022465,2]
[346215263,1734775954436,-616.43,0.00022465,2]
[346215264,1734775954447,-641.08,0.00022465,2]
[346215265,1734775954457,-703.62,0.00022465,2]
[346215266,1734775954467,-819.35,0.00022465,2]
[346215267,1734775954478,-1708.42,0.00022465,2]
[346215268,1734775954489,-827.89,0.00022465,2]
[346215269,1734775954499,-1594.45,0.00022465,2]
[346215270,1734775954509,-877.93,0.00022465,2]
[346215271,1734775954520,-296.15747373,0.00022465,2]
[346215272,1734775954531,-1310.13,0.00022465,2]
[346215273,1734775954542,-500.0,0.00022465,2]
[346215274,1734775954553,-663.97,0.00022465,2]
[346215275,1734775954564,-348.0,0.00022466,2]
[346215276,1734775954574,-1500.0,0.00022477,2]
[346215277,1734775954584,-31101.551711,0.00022485,2]
[346215278,1734775954595,-151.0,0.00022485,7]
[346215279,1734775954606,-5498.5827935,0.00022485,2]
[346215280,1734775954617,-6888.4025489,0.00022485,2]
[346215281,1734775954628,-152.627982,0.00022485,7]
[346215282,1734775954639,-14582.6444093,0.00022485,2]
[346215283,1734775954650,-15818.131961,0.00022485,2]
[346215284,1734775954660,-150.01,0.00022488,2]
[346215285,1734775954671,-150.01,0.00022488,2]
[346215286,1734775954681,-150.01,0.00022488,2]
[346215287,1734775954691,-150.01,0.00022488,2]
[346215288,1734775954702,-1587258.15626649,0.00022489,2]
[346215289,1734775954713,-218.42064512,0.00022489,7]
[346215290,1734775954724,-151.0,0.00022489,7]
[346215291,1734775954735,-151.0,0.00022489,7]
[346215292,1734775954746,-2005.535627,0.00022489,7]
[346215293,1734775954756,-2005.53563,0.00022489,7]
[346215294,1734775954766,-219.023894,0.00022489,7]
[346215295,1734775954777,-219.023891,0.00022489,7]
[346215296,1734775954788,-151.0,0.00022489,7]
[346215297,1734775954798,-151.0,0.00022489,7]
[346215298,1734775954807,-178.653876,0.00022489,7]
[346215299,1734775954818,-178.653876,0.00022489,7]
[346215300,1734775954828,-154.245975,0.00022489,7]
[346215301,1734775954838,-151.0,0.00022489,7]
[346215302,1734775954849,-546.544357,0.00022489,7]
[346215303,1734775954858,-546.544353,0.00022489,7]
[346215304,1734775954869,-208.35921,0.00022489,7]
[346215305,1734775954878,-208.359215,0.00022489,7]
[346215306,1734775954889,-150.43808002,0.0002249,2]
[346215307,1734775954898,-259.66117814,0.0002249,2]
[346215308,1734775954907,-150.0,0.0002249,2]
[346215309,1734775954918,-150.0,0.0002249,2]
[346215310,1734775954927,-150.20309557,0.0002249,2]
[346215311,1734775954937,-500.0,0.0002249,2]
[346215312,1734775954947,-150.0,0.0002249,2]
[346215313,1734775954957,-150.0,0.0002249,2]
[346215314,1734775954967,-1505.0,0.0002249,2]
[346215315,1734775954976,-885.0,0.0002249,2]
[346215316,1734775954986,-4515173.97337194,0.000225,2]
[346215317,1734775954996,-8000.0,0.000225,5]
[346215318,1734775955006,-10000.0,0.000225,2]
[346215319,1734775955015,-2306.84645973,0.000225,2]
[346215320,1734775955025,-9313161.81281493,0.000225,2]
[346215321,1734775955034,-379.0,0.000225,2]
[346215322,1734775955044,-107026.61580565,0.000225,2]
[346215323,1734775955054,-3085778.10635772,0.000225,2]
[346215324,1734775955068,-5000.0,0.000225,3]
[346215325,1734775955078,-2968.23,0.000225,3]
[346215326,1734775955088,-600.0,0.000225,2]
[346215327,1734775955098,-2110.0,0.000225,2]
[346215328,1734775955107,-3223.641097,0.000225,2]
[346215329,1734775955117,-2000.0,0.000225,2]
[346215330,1734775955126,-151.0,0.000225,7]
[346215331,1734775955136,-500.0,0.000225,2]
[346215332,1734775955147,-500.0,0.000225,2]
[346215333,1734775955157,-500.0,0.000225,2]
[346215334,1734775955167,-500.0,0.000225,2]
[346215335,1734775955177,-500.0,0.000225,2]
[346215336,1734775955186,-606.46256621,0.000225,2]
[346215337,1734775955196,-1325.6129,0.000225,2]
[346215338,1734775955206,-1325.6129,0.000225,2]
[346215339,1734775955216,-1000.0,0.000225,2]
[346215340,1734775955225,-158.0,0.000225,7]
[346215341,1734775955235,-500.0,0.000225,8]
[346215342,1734775955245,-500.0,0.000225,8]
[346215343,1734775955255,-500.0,0.000225,8]
[346215344,1734775955264,-500.0,0.000225,8]
[346215345,1734775955274,-500.0,0.000225,8]
[346215346,1734775955283,-627.77882997,0.000225,8]
[346215347,1734775955293,-500.0,0.000225,8]
[346215348,1734775955302,-500.0,0.000225,8]
[346215349,1734775955315,-500.0,0.000225,8]
[346215350,1734775955325,-500.0,0.000225,8]
[346215351,1734775955334,-500.0,0.000225,8]
[346215352,1734775955344,-500.0,0.000225,8]
[346215353,1734775955354,-500.0,0.000225,8]
[346215354,1734775955365,-500.0,0.000225,8]
[346215355,1734775955375,-500.0,0.000225,8]
[346215356,1734775955386,-500.0,0.000225,8]
[346215357,1734775955396,-1500.0,0.00022501,30]
[346215358,1734775955406,-2000.0,0.0002251,2]
[346215359,1734775955416,-3929.775566,0.0002252,2]
[346215360,1734775955426,-1000.0,0.00022521,2]
[346215361,1734775955435,-1000.0,0.00022521,2]
[346215362,1734775955528,-1000.0,0.00022521,2]
[346215363,1734775955538,-1076.50671787,0.00022522,2]
[346215364,1734775955548,-184.572135,0.00022531,2]
[346215365,1734775955557,-159.982133,0.00022531,2]
[346215366,1734775955570,-271.0,0.0002254,2]
[346215367,1734775955579,-210.0,0.0002254,2]
[346215368,1734775955588,-158.19,0.00022541,2]
[346215369,1734775955598,-1500.0,0.00022559,30]
[346215370,1734775955607,-2130.83,0.00022596,7]
[346215371,1734775955617,-2130.83,0.00022596,7]
[346215372,1734775955626,-1000.0,0.000226,3]
[346215373,1734775955635,-718.98,0.00022602,2]
[346215374,1734775955645,-1500.0,0.00022617,30]
[346215375,1734775955654,-769.63,0.00022658,2]
[346215376,1734775955664,-1538.94,0.00022658,2]
[346215377,1734775955673,-150.0,0.0002266,2]
[346215378,1734775955682,-150.0,0.0002266,2]
[346215379,1734775955691,-1500.0,0.00022676,30]
[346215380,1734775955700,-538.36945,0.00022688,7]
[346215381,1734775955709,-3000.0,0.000227,2]
[346215382,1734775955719,-1500.0,0.000227,2]
[346215383,1734775955728,-173.299245,0.00022714,2]
[346215384,1734775955737,-33518.3354924,0.00022723,2]
[346215385,1734775955746,-1500.0,0.00022734,30]
[346215386,1734775955756,-1315.92517,0.00022739,2]
[346215387,1734775955765,-2060.745603,0.00022739,2]
[346215388,1734775955775,-154.14021,0.00022739,2]
[346215389,1734775955785,-481.15080564,0.00022739,2]
[346215390,1734775955795,-500.0,0.00022739,2]
[346215391,1734775955804,-500.0,0.00022739,2]
[346215392,1734775955814,-500.0,0.00022739,2]
[346215393,1734775955823,-332.17040205,0.00022739,2]
[346215394,1734775955833,-500.0,0.00022739,2]
[346215395,1734775955842,-500.0,0.00022739,2]
[346215396,1734775955852,-726.79,0.00022739,2]
[346215397,1734775955861,-500.0,0.00022739,2]
[346215398,1734775955870,-532.67,0.00022739,2]
[346215399,1734775955879,-694.79,0.00022739,2]
[346215400,1734775955888,-545.1,0.00022739,2]
[346215401,1734775955898,-500.0,0.00022739,2]
[346215402,1734775955908,-500.0,0.00022739,2]
[346215403,1734775955918,-500.0,0.00022739,2]
[346215404,1734775955928,-500.0,0.00022739,2]
[346215405,1734775955937,-725.56,0.00022739,2]
[346215406,1734775955947,-628.09,0.00022739,2]
[346215407,1734775955956,-500.0,0.00022739,2]
[346215408,1734775955967,-500.0,0.00022739,2]
[346215409,1734775955976,-709.26,0.00022739,2]
[346215410,1734775955987,-709.06,0.00022739,2]
[346215411,1734775955997,-500.0,0.00022739,2]
[346215412,1734775956007,-832.53,0.00022739,2]
[346215413,1734775956016,-500.0,0.00022739,2]
[346215414,1734775956026,-500.0,0.00022739,2]
[346215415,1734775956035,-500.0,0.00022739,2]
[346215416,1734775956044,-500.0,0.00022739,2]
[346215417,1734775956053,-500.0,0.00022739,2]
[346215418,1734775956065,-500.0,0.00022739,2]
[346215419,1734775956075,-500.0,0.00022739,2]
[346215420,1734775956085,-500.0,0.00022739,2]
[346215421,1734775956094,-500.0,0.00022739,2]
[346215422,1734775956104,-347.59968229,0.00022739,2]
[346215423,1734775956114,-3009.64,0.00022739,2]
[346215424,1734775956124,-1290.83,0.00022739,2]
[346215425,1734775956135,-1763.28,0.00022739,2]
[346215426,1734775956149,-1110.5,0.00022739,2]
[346215427,1734775956158,-554.22,0.00022739,2]
[346215428,1734775956167,-678.62,0.00022739,2]
[346215429,1734775956176,-1310.29,0.00022739,2]
[346215430,1734775956186,-500.0,0.00022739,2]
[346215431,1734775956195,-500.0,0.00022739,2]
[346215432,1734775956206,-782.42,0.00022739,2]
[346215433,1734775956215,-500.0,0.00022739,2]
[346215434,1734775956225,-500.0,0.00022739,2]
[346215435,1734775956235,-1344.59,0.00022739,2]
[346215436,1734775956245,-500.0,0.00022739,2]
[346215437,1734775956255,-997.25,0.00022739,2]
[346215438,1734775956264,-500.0,0.00022739,2]
[346215439,1734775956273,-2209.2,0.00022739,2]
[346215440,1734775956282,-600.53,0.00022739,2]
[346215441,1734775956292,-681.25,0.00022739,2]
[346215442,1734775956301,-500.0,0.00022739,2]
[346215443,1734775956311,-1052.88,0.00022739,2]
[346215444,1734775956321,-500.0,0.00022739,2]
[346215445,1734775956331,-1457.83,0.00022739,2]
[346215446,1734775956340,-828.45,0.00022739,2]
[346215447,1734775956350,-1146.14,0.00022739,2]
[346215448,1734775956360,-1250.39,0.00022739,2]
[346215449,1734775956370,-500.0,0.00022739,2]
[346215450,1734775956379,-1419.2,0.00022739,2]
[346215451,1734775956388,-758.56,0.00022739,2]
[346215452,1734775956399,-500.0,0.00022739,2]
[346215453,1734775956410,-639.25,0.00022739,2]
[346215454,1734775956419,-635.85,0.00022739,2]
[346215455,1734775956429,-500.0,0.00022739,2]
[346215456,1734775956438,-756.25,0.00022739,2]
[346215457,1734775956448,-656.52,0.00022739,2]
[346215458,1734775956458,-679.69,0.00022739,2]
[346215459,1734775956468,-694.71,0.00022739,2]
[346215460,1734775956479,-477.9,0.00022739,2]
[346215461,1734775956490,-197.4,0.00022739,2]
[346215462,1734775956501,-696.96,0.00022739,2]
[346215463,1734775956511,-500.0,0.00022739,2]
[346215464,1734775956521,-500.0,0.00022739,2]
[346215465,1734775956532,-529.72,0.00022739,2]
[346215466,1734775956542,-1305.68,0.00022739,2]
[346215467,1734775956551,-845.31,0.00022739,2]
[346215468,1734775956561,-853.8,0.00022739,2]
[346215469,1734775956572,-1048.63,0.00022739,2]
[346215470,1734775956581,-1477.89,0.00022739,2]
[346215471,1734775956592,-1084.07,0.00022739,2]
[346215472,1734775956601,-500.0,0.00022739,2]
[346215473,1734775956612,-788.48,0.00022739,2]
[346215474,1734775956623,-743.94,0.00022739,2]
[346215475,1734775956633,-1099.89,0.00022739,2]
[346215476,1734775956643,-500.0,0.00022739,2]
[346215477,1734775956653,-500.0,0.00022739,2]
[346215478,1734775956664,-780.67,0.00022739,2]
[346215479,1734775956676,-500.0,0.00022739,2]
[346215480,1734775956685,-1161.79,0.00022739,2]
[346215481,1734775956695,-532.5,0.00022739,2]
[346215482,1734775956705,-500.0,0.00022739,2]
[346215483,1734775956716,-515.71,0.00022739,2]
[346215484,1734775956727,-707.57,0.00022739,2]
[346215485,1734775956739,-549.28,0.00022739,2]
[346215486,1734775956750,-500.0,0.00022739,2]
[346215487,1734775956759,-515.67839763,0.00022739,2]
[346215488,1734775956768,-500.0,0.00022739,2]
[346215489,1734775956778,-514.37,0.00022739,2]
[346215490,1734775956788,-612.84,0.00022739,2]
[346215491,1734775956797,-639.17,0.00022739,2]
[346215492,1734775956806,-500.0,0.00022739,2]
[346215493,1734775956817,-721.82,0.00022739,2]
[346215494,1734775956827,-448.72254026,0.00022739,2]
[346215495,1734775956837,-500.0,0.00022739,2]
[346215496,1734775956848,-1097.82,0.00022739,2]
[346215497,1734775956857,-1102.35,0.00022739,2]
[346215498,1734775956867,-500.0,0.00022739,2]
[346215499,1734775956877,-702.98,0.00022739,2]
[346215500,1734775956886,-517.71,0.00022739,2]
[346215501,1734775956896,-341.44528218,0.00022739,2]
[346215502,1734775956906,-911.98,0.00022739,2]
[346215503,1734775956916,-500.0,0.00022739,2]
[346215504,1734775956926,-904.16,0.00022739,2]
[346215505,1734775956936,-500.0,0.00022739,2]
[346215506,1734775956946,-242.88,0.00022739,2]
[346215507,1734775956957,-516.66,0.00022739,2]
[346215508,1734775956967,-881.76,0.00022739,2]
[346215509,1734775956976,-500.0,0.00022739,2]
[346215510,1734775956986,-1196.0,0.00022739,2]
[346215511,1734775956995,-718.98,0.00022739,2]
[346215512,1734775957006,-604.96,0.00022739,2]
[346215513,1734775957015,-500.0,0.00022739,2]
[346215514,1734775957026,-592.04880772,0.00022739,2]
[346215515,1734775957036,-630.9,0.00022739,2]
[346215516,1734775957045,-503.99941927,0.00022739,2]
[346215517,1734775957055,-671.72,0.00022739,2]
[346215518,1734775957069,-836.17,0.00022739,2]
[346215519,1734775957079,-954.09,0.00022739,2]
[346215520,1734775957090,-509.68,0.00022739,2]
[346215521,1734775957100,-796.49,0.00022739,2]
[346215522,1734775957111,-613.54,0.00022739,2]
[346215523,1734775957121,-500.0,0.00022739,2]
[346215524,1734775957131,-500.0,0.00022739,2]
[346215525,1734775957143,-1107.03,0.00022739,2]
[346215526,1734775957155,-632.72,0.00022739,2]
[346215527,1734775957165,-560.9,0.00022739,2]
[346215528,1734775957175,-500.0,0.00022739,2]
[346215529,1734775957185,-1187.28,0.00022739,2]
[346215530,1734775957194,-500.0,0.00022739,2]
[346215531,1734775957207,-500.0,0.00022739,2]
[346215532,1734775957218,-886.49,0.00022739,2]
[346215533,1734775957231,-500.0,0.00022739,2]
[346215534,1734775957242,-935.47,0.00022739,2]
[346215535,1734775957253,-583.48,0.00022739,2]
[346215536,1734775957263,-500.0,0.00022739,2]
[346215537,1734775957273,-1195.31,0.00022739,2]
[346215538,1734775957285,-711.4,0.00022739,2]
[346215539,1734775957295,-500.0,0.00022739,2]
[346215540,1734775957305,-868.6,0.00022739,2]
[346215541,1734775957315,-556.56,0.00022739,2]
[346215542,1734775957326,-1259.03,0.00022739,2]
[346215543,1734775957336,-500.0,0.00022739,2]
[346215544,1734775957347,-566.68,0.00022739,2]
[346215545,1734775957357,-526.17,0.00022739,2]
[346215546,1734775957367,-688.11,0.00022739,2]
[346215547,1734775957378,-982.15,0.00022739,2]
[346215548,1734775957388,-982.5,0.00022739,2]
[346215549,1734775957398,-700.81,0.00022739,2]
[346215550,1734775957408,-500.0,0.00022739,2]
[346215551,1734775957419,-908.4,0.00022739,2]
[346215552,1734775957429,-500.0,0.00022739,2]
[346215553,1734775957440,-970.68,0.00022739,2]
[346215554,1734775957450,-1203.95,0.00022739,2]
[346215555,1734775957459,-500.0,0.00022739,2]
[346215556,1734775957469,-604.93,0.00022739,2]
[346215557,1734775957479,-1020.15,0.00022739,2]
[346215558,1734775957490,-500.0,0.00022739,2]
[346215559,1734775957500,-500.0,0.00022739,2]
[346215560,1734775957510,-977.35,0.00022739,2]
[346215561,1734775957521,-588.29,0.00022739,2]
[346215562,1734775957531,-2100.81,0.00022739,2]
[346215563,1734775957541,-1137.46,0.00022739,2]
[346215564,1734775957551,-954.46,0.00022739,2]
[346215565,1734775957561,-500.0,0.00022739,2]
[346215566,1734775957572,-500.0,0.00022739,2]
[346215567,1734775957582,-588.07,0.00022739,2]
[346215568,1734775957592,-865.9,0.00022739,2]
[346215569,1734775957602,-500.0,0.00022739,2]
[346215570,1734775957612,-1839.2,0.00022739,2]
[346215571,1734775957622,-841.64,0.00022739,2]
[346215572,1734775957632,-492.48,0.00022739,2]
[346215573,1734775957642,-500.0,0.00022739,2]
[346215574,1734775957651,-500.0,0.00022739,2]
[346215575,1734775957661,-1434.78,0.00022739,2]
[346215576,1734775957671,-753.67,0.00022739,2]
[346215577,1734775957681,-916.41,0.00022739,2]
[346215578,1734775957691,-500.0,0.00022739,2]
[346215579,1734775957702,-1229.82,0.00022739,2]
[346215580,1734775957713,-538.68,0.00022739,2]
[346215581,1734775957723,-2061.42,0.00022739,3]
[346215582,1734775957733,-1289.82,0.00022739,2]
[346215583,1734775957743,-3068.56,0.00022739,2]